lending/lending_fUSD_20240824
["ID","MTS","AMOUNT","RATE_DAILY","PERIOD"]
[335744195,1724473831903,-150.0,0.00010817,2]
[335744196,1724473831915,-150.0,0.00010819,2]
[335744197,1724473831925,-150.0,0.00010825,2]
[335744198,1724473831936,-150.0,0.00010828,2]
[335744199,1724473831946,-150.0,0.00010829,2]
[335744200,1724473831956,-150.0,0.00010834,2]
[335744201,1724473831966,-150.0,0.00010837,2]
[335744202,1724473831975,-150.0,0.00010842,2]
[335744203,1724473831985,-150.0,0.00010846,2]
[335744204,1724473831994,-150.0,0.0001085,2]
[335744205,1724473832005,-650.5910874,0.00010852,2]
[335744206,1724473832015,-150.0,0.00010853,2]
[335744207,1724473832024,-150.0,0.00010855,2]
[335744208,1724473832033,-150.0,0.00010858,2]
[335744209,1724473832042,-205.84705767,0.00010862,2]
[335744210,1724473832052,-150.0,0.00010867,2]
[335744211,1724473832061,-150.0,0.0001087,2]
[335744212,1724473832070,-150.0,0.00010871,2]
[335744213,1724473832079,-150.0,0.00010872,2]
[335744214,1724473832088,-150.0,0.00010872,2]
[335744215,1724473832098,-150.0,0.00010877,2]
[335744216,1724473832108,-150.0,0.00010879,2]
[335744217,1724473832118,-150.0,0.00010881,2]
[335744218,1724473832129,-150.0,0.00010881,2]
[335744219,1724473832138,-150.0,0.00010887,2]
[335744220,1724473832147,-370.67009226,0.00010888,2]
[335744221,1724473832157,-150.0,0.00010888,2]
[335744222,1724473832166,-150.0,0.00010889,2]
[335744223,1724473832175,-150.0,0.00010889,2]
[335744224,1724473832185,-150.0,0.0001089,2]
[335744225,1724473832194,-1477.92144,0.0001089,2]
[335744226,1724473832204,-28264.5856,0.00010893,2]
[335744227,1724473832213,-150.0,0.00010893,2]
[335744228,1724473832222,-15050.2465,0.00010894,2]
[335744229,1724473832232,-2500.0,0.00010894,2]
[335744230,1724473832241,-150.0,0.00010894,2]
[335744231,1724473832251,-150.0,0.00010895,2]
[335744232,1724473832260,-825.9845,0.00010895,2]
[335744233,1724473832270,-1310.4205,0.00010895,2]
[335744234,1724473832280,-818.326,0.00010895,2]
[335744235,1724473832289,-14653.6761,0.00010895,2]
[335744236,1724473832298,-2359.26,0.00010895,2]
[335744237,1724473832308,-150.0,0.00010897,2]
[335744238,1724473832317,-7500.0,0.00010898,2]
[335744239,1724473832327,-347.16707969,0.00010899,2]
[335744240,1724473832336,-347.16707964,0.00010899,2]
[335744241,1724473832346,-347.16707964,0.00010899,2]
[335744242,1724473832355,-347.16707964,0.00010899,2]
[335744243,1724473832365,-347.16707964,0.00010899,2]
[335744244,1724473832374,-347.16707964,0.00010899,2]
[335744245,1724473832384,-347.16707964,0.00010899,2]
[335744246,1724473832394,-347.16707964,0.00010899,2]
[335744247,1724473832403,-347.16707964,0.00010899,2]
[335744248,1724473832412,-150.0,0.000109,2]
[335744249,1724473832421,-347.16707964,0.000109,2]
[335744250,1724473832430,-426.79,0.000109,2]
[335744251,1724473832439,-345.36063455,0.000109,2]
[335744252,1724473832449,-426.79,0.000109,2]
[335744253,1724473832459,-150.0,0.00010904,2]
[335744254,1724473832469,-150.0,0.0001091,2]
[335744255,1724473832479,-150.0,0.00010912,2]
[335744256,1724473832488,-150.0,0.00010912,2]
[335744257,1724473832498,-150.0,0.00010912,2]
[335744258,1724473832508,-150.0,0.00010913,2]
[335744259,1724473832517,-150.0,0.00010919,2]
[335744260,1724473832527,-150.0,0.00010921,2]
[335744261,1724473832536,-150.0,0.00010923,2]
[335744262,1724473832546,-150.0,0.00010926,2]
[335744263,1724473832556,-150.0,0.0001093,2]
[335744264,1724473832566,-150.0,0.00010934,2]
[335744265,1724473832577,-150.0,0.00010934,2]
[335744266,1724473832586,-150.0,0.00010938,2]
[335744267,1724473832595,-150.0,0.0001094,2]
[335744268,1724473832604,-150.0,0.00010942,2]
[335744269,1724473832613,-150.0,0.00010944,2]
[335744270,1724473832622,-155.0,0.00010949,2]
[335744271,1724473832632,-150.0,0.0001095,2]
[335744272,1724473832641,-150.0,0.00010954,2]
[335744273,1724473832651,-150.0,0.00010957,2]
[335744274,1724473832660,-150.0,0.00010957,2]
[335744275,1724473832670,-150.0,0.00010958,2]
[335744276,1724473832680,-2000.0,0.00010959,2]
[335744277,1724473832690,-154.45,0.00010959,2]
[335744278,1724473832699,-250.0,0.00010959,2]
[335744279,1724473832709,-150.0,0.00010959,2]
[335744280,1724473832722,-150.99,0.00010959,2]
[335744281,1724473832738,-199.05,0.00010959,2]
[335744282,1724473832748,-502.5901648,0.0001096,2]
[335744283,1724473832758,-500.0,0.0001096,2]
[335744284,1724473832767,-500.0,0.0001096,2]
[335744285,1724473832778,-500.0,0.0001096,2]
[335744286,1724473832787,-150.0,0.0001096,2]
[335744287,1724473832966,-150.0,0.0001096,2]
[335744288,1724473832976,-175.411,0.00010968,2]
[335744289,1724473832986,-150.0,0.00010968,2]
[335744290,1724473832995,-150.0,0.00010969,2]
[335744291,1724473833006,-150.0,0.0001097,2]
[335744292,1724473833015,-200.0,0.00010973,2]
[335744293,1724473833024,-150.0,0.00010982,2]
[335744294,1724473833034,-150.0,0.00010987,2]
[335744295,1724473833043,-150.0,0.00010988,2]
[335744296,1724473833052,-500.0,0.00010989,2]
[335744297,1724473833062,-100650.29718452,0.0001099,2]
[335744298,1724473833076,-661.83076547,0.0001099,2]
[335744299,1724473833088,-9575.13264363,0.0001099,2]
[335744300,1724473833098,-150.0,0.00010993,2]
[335744301,1724473833107,-500.0,0.00010993,2]
[335744302,1724473833117,-1048.73560191,0.00010994,2]
[335744303,1724473833128,-810.10439809,0.00010994,2]
[335744304,1724473833138,-500.0,0.00010994,2]
[335744305,1724473833148,-500.0,0.00010994,2]
[335744306,1724473833157,-1334.94,0.00010994,2]
[335744307,1724473833167,-500.0,0.00010994,2]
[335744308,1724473833176,-1171.3,0.00010994,2]
[335744309,1724473833185,-1106.89539064,0.00010994,2]
[335744310,1724473833196,-585.42460936,0.00010994,2]
[335744311,1724473833206,-500.0,0.00010994,2]
[335744312,1724473833217,-500.0,0.00010994,2]
[335744313,1724473833226,-961.48,0.00010994,2]
[335744314,1724473833235,-478.60939064,0.00010994,2]
[335744315,1724473833247,-21.39060936,0.00010994,2]
[335744316,1724473833256,-500.0,0.00010994,2]
[335744317,1724473833266,-216.96014715,0.00010994,2]
[335744318,1724473833277,-283.92041218,0.00010994,2]
[335744319,1724473833287,-500.0,0.00010994,2]
[335744320,1724473833296,-345.51606026,0.00010994,2]
[335744321,1724473833305,-608.32,0.00010994,2]
[335744322,1724473833315,-1042.31,0.00010994,2]
[335744323,1724473833324,-629.15,0.00010994,2]
[335744324,1724473833334,-543.31,0.00010994,2]
[335744325,1724473833344,-431.31153661,0.00010994,2]
[335744326,1724473833355,-68.68846339,0.00010994,2]
[335744327,1724473833365,-713.97,0.00010994,2]
[335744328,1724473833374,-500.0,0.00010994,2]
[335744329,1724473833384,-587.52,0.00010994,2]
[335744330,1724473833393,-500.0,0.00010994,2]
[335744331,1724473833402,-1997.53,0.00010994,2]
[335744332,1724473833412,-105.39366107,0.00010994,2]
[335744333,1724473833423,-394.60633893,0.00010994,2]
[335744334,1724473833432,-59.00226221,0.00010994,2]
[335744335,1724473833475,-264.63989011,0.00010994,2]
[335744336,1724473833487,-176.35784768,0.00010994,2]
[335744337,1724473833496,-423.1021524,0.00010994,2]
[335744338,1724473833507,-175.3578476,0.00010994,2]
[335744339,1724473833517,-500.0,0.00010994,2]
[335744340,1724473833526,-1818.58696702,0.00010994,2]
[335744341,1724473836650,179.03,7.544e-05,2]
[335744343,1724473837491,-1074.78314637,0.00010713,2]
[335744344,1724473837500,-166.89523399,0.00010713,2]
[335744345,1724473837657,-1979.7030971,0.00010713,2]
[335744346,1724473837666,-687.7799413,0.00010861,2]
[335744347,1724473837675,-2500.0,0.00010872,2]
[335744348,1724473837684,-503.42415392,0.00010993,2]
[335744349,1724473837693,-500.0,0.00010993,2]
[335744350,1724473837704,-528.23303298,0.00010994,2]
[335744351,1724473837715,-3308.93,0.00010994,2]
[335744352,1724473837724,-500.0,0.00010994,2]
[335744353,1724473837733,-500.0,0.00010994,2]
[335744354,1724473837744,-1223.86,0.00010994,2]
[335744355,1724473837753,-500.0,0.00010994,2]
[335744356,1724473837763,-500.0,0.00010994,2]
[335744357,1724473837772,-500.0,0.00010994,2]
[335744358,1724473837781,-500.0,0.00010995,2]
[335744359,1724473837790,-1171.3,0.00010995,2]
[335744360,1724473837799,-1692.32,0.00010995,2]
[335744361,1724473837808,-336.0481776,0.00010995,2]
[335744362,1724473837818,-4374.5545803,0.00010995,2]
[335744363,1724473837828,-961.48,0.00010995,2]
[335744364,1724473837841,-150.0,0.00010995,2]
[335744365,1724473837850,-500.0,0.00010995,2]
[335744366,1724473837860,-608.32,0.00010995,2]
[335744367,1724473837871,-1042.31,0.00010995,2]
[335744368,1724473837880,-629.15,0.00010995,2]
[335744369,1724473837891,-543.31,0.00010995,2]
[335744370,1724473837899,-500.0,0.00010995,2]
[335744371,1724473837910,-713.97,0.00010995,2]
[335744372,1724473837924,-500.0,0.00010995,2]
[335744373,1724473837937,-587.52,0.00010995,2]
[335744374,1724473837948,-500.0,0.00010995,2]
[335744375,1724473837962,-1997.53,0.00010995,2]
[335744376,1724473837973,-500.0,0.00010995,2]
[335744377,1724473837985,-500.0,0.00010995,2]
[335744378,1724473837997,-598.46,0.00010995,2]
[335744379,1724473838007,-500.0,0.00010995,2]
[335744380,1724473838020,-2346.82,0.00010995,2]
[335744381,1724473838032,-48508.369439,0.00010995,2]
[335744382,1724473838043,-6972.6238607,0.00010995,2]
[335744383,1724473838055,-500.0,0.00010995,2]
[335744384,1724473838067,-500.0,0.00010996,2]
[335744385,1724473838079,-500.0,0.00010996,2]
[335744386,1724473838090,-500.0,0.00010996,2]
[335744387,1724473838102,-1171.3,0.00010996,2]
[335744388,1724473838115,-1171.3,0.00010996,2]
[335744389,1724473838127,-1171.3,0.00010996,2]
[335744390,1724473838140,-1692.32,0.00010996,2]
[335744391,1724473838153,-1692.32,0.00010996,2]
[335744392,1724473838166,-1692.32,0.00010996,2]
[335744393,1724473838179,-961.48,0.00010996,2]
[335744394,1724473838191,-961.48,0.00010996,2]
[335744395,1724473838203,-961.48,0.00010996,2]
[335744396,1724473838214,-500.0,0.00010996,2]
[335744397,1724473838226,-608.32,0.00010996,2]
[335744398,1724473838237,-608.32,0.00010996,2]
[335744399,1724473838248,-608.32,0.00010996,2]
[335744400,1724473838261,-1042.31,0.00010996,2]
[335744401,1724473838271,-1042.31,0.00010996,2]
[335744402,1724473838281,-1042.31,0.00010996,2]
[335744403,1724473838291,-629.15,0.00010996,2]
[335744404,1724473838302,-629.15,0.00010996,2]
[335744405,1724473838312,-629.15,0.00010996,2]
[335744406,1724473838323,-543.31,0.00010996,2]
[335744407,1724473838334,-543.31,0.00010996,2]
[335744408,1724473838346,-543.31,0.00010996,2]
[335744409,1724473838358,-500.0,0.00010996,2]
[335744410,1724473838371,-500.0,0.00010996,2]
[335744411,1724473838384,-500.0,0.00010996,2]
[335744412,1724473838397,-713.97,0.00010996,2]
[335744413,1724473838408,-713.97,0.00010996,2]
[335744414,1724473838420,-713.97,0.00010996,2]
[335744415,1724473838430,-500.0,0.00010996,2]
[335744416,1724473838440,-500.0,0.00010996,2]
[335744417,1724473838450,-500.0,0.00010996,2]
[335744418,1724473838460,-587.52,0.00010996,2]
[335744419,1724473838471,-587.52,0.00010996,2]
[335744420,1724473838481,-587.52,0.00010996,2]
[335744421,1724473838495,-500.0,0.00010996,2]
[335744422,1724473838508,-500.0,0.00010996,2]
[335744423,1724473838521,-500.0,0.00010996,2]
[335744424,1724473838534,-1997.53,0.00010996,2]
[335744425,1724473838543,-1997.53,0.00010996,2]
[335744426,1724473838554,-1997.53,0.00010996,2]
[335744427,1724473838567,-500.0,0.00010996,2]
[335744428,1724473838581,-154.85326953,0.00010996,2]
[335744429,1724473838592,-500.0,0.00010996,2]
[335744430,1724473838606,-500.0,0.00010996,2]
[335744431,1724473838618,-500.0,0.00010996,2]
[335744432,1724473838629,-598.46,0.00010996,2]
[335744433,1724473838640,-598.46,0.00010996,2]
[335744434,1724473838651,-598.46,0.00010996,2]
[335744435,1724473838663,-500.0,0.00010996,2]
[335744436,1724473838674,-500.0,0.00010996,2]
[335744437,1724473838684,-500.0,0.00010996,2]
[335744438,1724473838695,-2346.82,0.00010996,2]
[335744439,1724473838706,-2346.82,0.00010996,2]
[335744440,1724473838717,-2346.82,0.00010996,2]
[335744441,1724473838727,-500.0,0.00010997,2]
[335744442,1724473838740,-500.0,0.00010997,2]
[335744443,1724473838751,-1171.3,0.00010997,2]
[335744444,1724473838762,-1171.3,0.00010997,2]
[335744445,1724473838772,-1692.32,0.00010997,2]
[335744446,1724473838783,-1692.32,0.00010997,2]
[335744447,1724473838793,-961.48,0.00010997,2]
[335744448,1724473838804,-961.48,0.00010997,2]
[335744449,1724473838815,-150.0,0.00010997,2]
[335744450,1724473838826,-500.0,0.00010997,2]
[335744451,1724473838838,-500.0,0.00010997,2]
[335744452,1724473838853,-500.0,0.00010997,2]
[335744453,1724473838864,-608.32,0.00010997,2]
[335744454,1724473838874,-608.32,0.00010997,2]
[335744455,1724473838884,-1042.31,0.00010997,2]
[335744456,1724473838894,-1042.31,0.00010997,2]
[335744457,1724473838904,-629.15,0.00010997,2]
[335744458,1724473838915,-629.15,0.00010997,2]
[335744459,1724473838925,-543.31,0.00010997,2]
[335744460,1724473838936,-543.31,0.00010997,2]
[335744461,1724473838946,-500.0,0.00010997,2]
[335744462,1724473838957,-500.0,0.00010997,2]
[335744463,1724473838968,-713.97,0.00010997,2]
[335744464,1724473838978,-713.97,0.00010997,2]
[335744465,1724473838989,-500.0,0.00010997,2]
[335744466,1724473838999,-500.0,0.00010997,2]
[335744467,1724473839010,-587.52,0.00010997,2]
[335744468,1724473839020,-587.52,0.00010997,2]
[335744469,1724473839030,-500.0,0.00010997,2]
[335744470,1724473839041,-504.82949347,0.00010997,2]
[335744471,1724473839051,-1997.53,0.00010997,2]
[335744472,1724473839061,-1997.53,0.00010997,2]
[335744473,1724473839071,-500.0,0.00010997,2]
[335744474,1724473839082,-500.0,0.00010997,2]
[335744475,1724473839092,-598.46,0.00010997,2]
[335744476,1724473839102,-598.46,0.00010997,2]
[335744477,1724473839113,-343.65804842,0.00010997,2]
[335744478,1724473839123,-2346.82,0.00010997,2]
[335744479,1724473839133,-2346.82,0.00010997,2]
[335744480,1724473839145,-500.0,0.00010997,2]
[335744481,1724473839155,-821.019,0.00010998,2]
[335744482,1724473839165,-556.0,0.00010998,2]
[335744483,1724473839176,-447.0,0.00010998,2]
[335744484,1724473839187,-1138.0,0.00010998,2]
[335744485,1724473839198,-1903.654,0.00010998,2]
[335744486,1724473839210,-150.928,0.00010998,2]
[335744487,1724473839220,-557.113,0.00010998,2]
[335744488,1724473839231,-1154.0,0.00010998,2]
[335744489,1724473839241,-3333.081,0.00010998,2]
[335744492,1724473839253,-248.55,0.00010998,2]
[335744493,1724473839265,-768.0,0.00010998,2]
[335744494,1724473839275,-1082.013,0.00010998,2]
[335744495,1724473839285,-3728.0,0.00010998,2]
[335744497,1724473839297,-18278.332,0.00010998,2]
[335744499,1724473839307,-1544.0,0.00010998,2]
[335744501,1724473839318,-1923.0,0.00010998,2]
[335744503,1724473839328,-289.0,0.00010998,2]
[335744505,1724473839338,-5847.0,0.00010998,2]
[335744507,1724473839350,-500.0,0.00010998,2]
[335744509,1724473839361,-500.0,0.00010998,2]
[335744512,1724473839373,-500.0,0.00010998,2]
[335744513,1724473839384,-500.0,0.00010998,2]
[335744515,1724473839396,-500.0,0.00010998,2]
[335744517,1724473839407,-1171.3,0.00010998,2]
[335744519,1724473839420,-1171.3,0.00010998,2]
[335744521,1724473839431,-1171.3,0.00010998,2]
[335744523,1724473839444,-1171.3,0.00010998,2]
[335744526,1724473839456,-1171.3,0.00010998,2]
[335744528,1724473839466,-1692.32,0.00010998,2]
[335744530,1724473839476,-1692.32,0.00010998,2]
[335744532,1724473839487,-1692.32,0.00010998,2]
[335744534,1724473839500,-1692.32,0.00010998,2]
[335744536,1724473839510,-1692.32,0.00010998,2]
[335744538,1724473839521,-961.48,0.00010998,2]
[335744540,1724473839531,-961.48,0.00010998,2]
[335744542,1724473839542,-961.48,0.00010998,2]
[335744544,1724473839553,-961.48,0.00010998,2]
[335744546,1724473839565,-961.48,0.00010998,2]
[335744549,1724473839576,-500.0,0.00010998,2]
[335744551,1724473839586,-500.0,0.00010998,2]
[335744553,1724473839597,-500.0,0.00010998,2]
[335744555,1724473839607,-566.51114727,0.00010998,2]
[335744557,1724473839617,-608.32,0.00010998,2]
[335744558,1724473839626,-608.32,0.00010998,2]
[335744560,1724473839635,-608.32,0.00010998,2]
[335744562,1724473839644,-608.32,0.00010998,2]
[335744564,1724473839653,-608.32,0.00010998,2]
[335744565,1724473839662,-1042.31,0.00010998,2]
[335744567,1724473839672,-1042.31,0.00010998,2]
[335744589,1724473839875,-1042.31,0.00010998,2]
[335744592,1724473839893,-1042.31,0.00010998,2]
[335744594,1724473839903,-1042.31,0.00010998,2]
[335744595,1724473839914,-629.15,0.00010998,2]
[335744597,1724473839923,-629.15,0.00010998,2]
[335744599,1724473839934,-629.15,0.00010998,2]
[335744601,1724473839943,-629.15,0.00010998,2]
[335744603,1724473839952,-629.15,0.00010998,2]
[335744605,1724473839961,-543.31,0.00010998,2]
[335744607,1724473839977,-543.31,0.00010998,2]
[335744609,1724473839986,-543.31,0.00010998,2]
[335744611,1724473839995,-543.31,0.00010998,2]
[335744613,1724473840006,-543.31,0.00010998,2]
[335744615,1724473840015,-500.0,0.00010998,2]
[335744617,1724473840026,-500.0,0.00010998,2]
[335744619,1724473840035,-500.0,0.00010998,2]
[335744621,1724473840044,-500.0,0.00010998,2]
[335744623,1724473840053,-500.0,0.00010998,2]
[335744625,1724473840062,-713.97,0.00010998,2]
[335744628,1724473840071,-713.97,0.00010998,2]
[335744631,1724473840080,-713.97,0.00010998,2]
[335744634,1724473840090,-713.97,0.00010998,2]
[335744636,1724473840099,-713.97,0.00010998,2]
[335744638,1724473840107,-500.0,0.00010998,2]
[335744640,1724473840116,-500.0,0.00010998,2]
[335744642,1724473840125,-456.26416637,0.00010998,2]
[335744644,1724473840134,-587.52,0.00010998,2]
[335744646,1724473840144,-587.52,0.00010998,2]
[335744648,1724473840153,-587.52,0.00010998,2]
[335744650,1724473840162,-587.52,0.00010998,2]
[335744651,1724473840170,-587.52,0.00010998,2]
[335744653,1724473840180,-1997.53,0.00010998,2]
[335744655,1724473840189,-1997.53,0.00010998,2]
[335744657,1724473840198,-1997.53,0.00010998,2]
[335744659,1724473840207,-1997.53,0.00010998,2]
[335744661,1724473840217,-1997.53,0.00010998,2]
[335744663,1724473840226,-500.0,0.00010998,2]
[335744664,1724473840236,-500.0,0.00010998,2]
[335744666,1724473840245,-500.0,0.00010998,2]
[335744668,1724473840254,-500.0,0.00010998,2]
[335744670,1724473840263,-500.0,0.00010998,2]
[335744672,1724473840272,-598.46,0.00010998,2]
[335744673,1724473840281,-598.46,0.00010998,2]
[335744675,1724473840290,-598.46,0.00010998,2]
[335744677,1724473840299,-598.46,0.00010998,2]
[335744679,1724473840308,-598.46,0.00010998,2]
[335744681,1724473840317,-3308.93,0.00010998,2]
[335744682,1724473840326,-2346.82,0.00010998,2]
[335744684,1724473840335,-2346.82,0.00010998,2]
[335744686,1724473840343,-2346.82,0.00010998,2]
[335744688,1724473840352,-2346.82,0.00010998,2]
[335744690,1724473840361,-2346.82,0.00010998,2]
[335744692,1724473840370,-581.53619447,0.00010998,2]
[335744694,1724473840379,-500.0,0.00010998,2]
[335744696,1724473840388,-500.0,0.00010998,2]
[335744698,1724473840397,-500.0,0.00010998,2]
[335744700,1724473840406,-500.0,0.00010998,2]
[335744702,1724473840415,-500.0,0.00010998,2]
[335744704,1724473840424,-500.0,0.00010998,2]
[335744705,1724473840433,-500.0,0.00010998,2]
[335744707,1724473840442,-150.01,0.00010999,2]
[335744709,1724473840451,-1858.84,0.00010999,2]
[335744711,1724473840459,-1858.84,0.00010999,2]
[335744713,1724473840469,-1858.84,0.00010999,2]
[335744715,1724473840478,-1858.84,0.00010999,2]
[335744717,1724473840487,-1858.84,0.00010999,2]
[335744719,1724473840497,-1858.84,0.00010999,2]
[335744721,1724473840505,-1858.84,0.00010999,2]
[335744722,1724473840514,-1858.84,0.00010999,2]
[335744724,1724473840524,-1858.84,0.00010999,2]
[335744726,1724473840533,-1858.84,0.00010999,2]
[335744728,1724473840542,-1858.84,0.00010999,2]
[335744730,1724473840551,-1858.84,0.00010999,2]
[335744732,1724473840560,-1858.84,0.00010999,2]
[335744734,1724473840569,-1858.84,0.00010999,2]
[335744736,1724473840579,-1858.84,0.00010999,2]
[335744738,1724473840588,-1858.84,0.00010999,2]
[335744740,1724473840597,-1858.84,0.00010999,2]
[335744742,1724473840607,-1858.84,0.00010999,2]
[335744744,1724473840617,-1858.84,0.00010999,2]
[335744746,1724473840629,-1858.84,0.00010999,2]
[335744748,1724473840639,-1858.84,0.00010999,2]
[335744750,1724473840649,-1858.84,0.00010999,2]
[335744752,1724473840660,-1859.04652977,0.00010999,2]
[335744754,1724473840670,-500.0,0.00010999,2]
[335744756,1724473840681,-500.0,0.00010999,2]
[335744758,1724473840691,-500.0,0.00010999,2]
[335744760,1724473840699,-500.0,0.00010999,2]
[335744762,1724473840710,-252.92771408,0.00010999,2]
[335744764,1724473840720,-1334.94,0.00010999,2]
[335744766,1724473840730,-1334.94,0.00010999,2]
[335744768,1724473840739,-1334.94,0.00010999,2]
[335744770,1724473840749,-1334.94,0.00010999,2]
[335744772,1724473840759,-1334.94,0.00010999,2]
[335744774,1724473840768,-1334.94,0.00010999,2]
[335744776,1724473840777,-1334.94,0.00010999,2]
[335744778,1724473840787,-1334.94,0.00010999,2]
[335744780,1724473840796,-1334.94,0.00010999,2]
[335744782,1724473840806,-1334.94,0.00010999,2]
[335744784,1724473840815,-1334.94,0.00010999,2]
[335744786,1724473840824,-1334.94,0.00010999,2]
[335744788,1724473840833,-1334.94,0.00010999,2]
[335744790,1724473840846,-1334.94,0.00010999,2]
[335744792,1724473840855,-1334.94,0.00010999,2]
[335744794,1724473840864,-1334.94,0.00010999,2]
[335744796,1724473840874,-1334.94,0.00010999,2]
[335744798,1724473840883,-1334.94,0.00010999,2]
[335744800,1724473840892,-1334.94,0.00010999,2]
[335744802,1724473840901,-1334.94,0.00010999,2]
[335744803,1724473840910,-1334.94,0.00010999,2]
[335744805,1724473840920,-1334.94,0.00010999,2]
[335744807,1724473840929,-1334.96440268,0.00010999,2]
[335744809,1724473840938,-500.0,0.00010999,2]
[335744811,1724473840947,-500.0,0.00010999,2]
[335744813,1724473840957,-500.0,0.00010999,2]
[335744815,1724473840968,-500.0,0.00010999,2]
[335744817,1724473840977,-500.0,0.00010999,2]
[335744819,1724473840986,-500.0,0.00010999,2]
[335744821,1724473840995,-500.0,0.00010999,2]
[335744823,1724473841004,-500.0,0.00010999,2]
[335744825,1724473841013,-543.52455276,0.00010999,2]
[335744827,1724473841023,-1171.3,0.00010999,2]
[335744829,1724473841033,-1171.3,0.00010999,2]
[335744831,1724473841042,-1171.3,0.00010999,2]
[335744833,1724473841051,-1171.3,0.00010999,2]
[335744835,1724473841060,-1171.3,0.00010999,2]
[335744837,1724473841072,-1171.3,0.00010999,2]
[335744839,1724473841083,-1171.3,0.00010999,2]
[335744841,1724473841094,-1171.3,0.00010999,2]
[335744843,1724473841104,-1171.3,0.00010999,2]
[335744845,1724473841113,-1171.3,0.00010999,2]
[335744847,1724473841123,-1171.3,0.00010999,2]
[335744849,1724473841132,-1171.33514765,0.00010999,2]
[335744851,1724473841142,-1692.32,0.00010999,2]
[335744853,1724473841151,-1692.32,0.00010999,2]
[335744855,1724473841160,-1692.32,0.00010999,2]
[335744856,1724473841170,-1692.32,0.00010999,2]
[335744858,1724473841179,-1692.32,0.00010999,2]
[335744860,1724473841188,-1692.32,0.00010999,2]
[335744862,1724473841198,-1692.32,0.00010999,2]
[335744864,1724473841207,-1692.32,0.00010999,2]
[335744866,1724473841216,-1692.32,0.00010999,2]
[335744868,1724473841226,-1692.32,0.00010999,2]
[335744870,1724473841236,-1692.32,0.00010999,2]
[335744872,1724473841245,-1692.53249644,0.00010999,2]
[335744874,1724473841256,-500.0,0.00010999,2]
[335744876,1724473841266,-500.0,0.00010999,2]
[335744878,1724473841275,-500.0,0.00010999,2]
[335744880,1724473841284,-500.0,0.00010999,2]
[335744882,1724473841294,-500.0,0.00010999,2]
[335744884,1724473841303,-500.0,0.00010999,2]
[335744886,1724473841313,-500.0,0.00010999,2]
[335744888,1724473841322,-500.0,0.00010999,2]
[335744890,1724473841331,-500.0,0.00010999,2]
[335744892,1724473841341,-500.0,0.00010999,2]
[335744894,1724473841352,-500.0,0.00010999,2]
[335744896,1724473841361,-500.0,0.00010999,2]
[335744898,1724473841370,-500.0,0.00010999,2]
[335744900,1724473841380,-500.0,0.00010999,2]
[335744902,1724473841390,-500.0,0.00010999,2]
[335744904,1724473841400,-500.0,0.00010999,2]
[335744906,1724473841410,-500.0,0.00010999,2]
[335744908,1724473841419,-625.522031,0.00010999,2]
[335744910,1724473841429,-500.0,0.00010999,2]
[335744912,1724473841440,-500.0,0.00010999,2]
[335744914,1724473841449,-500.0,0.00010999,2]